[Event "FIDE Women World Blitz 2021"]
[Site "Warsaw"]
[Date "2021.12.29"]
[Round "4.17"]
[White "Zhukova, Natalia"]
[Black "Zawadzka, Jolanta"]
[Result "1-0"]
[ECO "D37"]
[WhiteElo "2331"]
[BlackElo "2429"]
[Annotator "NA"]
[PlyCount "95"]
[EventDate "2021.12.29"]
[EventType "swiss"]
[EventCountry "POL"]
[Tiebreak "Cut1 Buchholz"]
[SourceTitle "playchess.com"]
[Source "ChessBase"]
[SourceQuality "1"]
[TimeControl "180+2"]

1. c4 {[%emt 0:00:01]} e6 {[%emt 0:00:01]} 2. Nc3 {[%emt 0:00:02]} d5 {[%emt 0:
00:01]} 3. d4 {[%emt 0:00:01]} a6 {[%emt 0:00:01]} 4. cxd5 {[%emt 0:00:04]}
exd5 {[%emt 0:00:01]} 5. Nf3 {[%emt 0:00:02]} Nf6 {[%emt 0:00:01]} 6. Bg5 {
[%emt 0:00:13]} Be6 {[%emt 0:00:02]} 7. Qb3 {[%emt 0:00:11]} Nbd7 {[%emt 0:00:
03]} 8. e3 {[%emt 0:00:08]} Rb8 {[%emt 0:00:05]} 9. Qc2 {[%emt 0:00:09]} h6 {
[%emt 0:00:02]} 10. Bh4 {[%emt 0:00:01]} Bd6 {[%emt 0:00:08]} 11. Bd3 {[%emt 0:
00:02]} c6 {[%emt 0:00:05]} 12. O-O {[%emt 0:00:07]} O-O {[%emt 0:00:04]} 13.
a3 {[%emt 0:00:06]} Qc7 {[%emt 0:00:02]} 14. b4 {[%emt 0:00:09]} Bg4 {[%emt 0:
00:17]} 15. Bg3 {[%emt 0:00:09]} Bxf3 {[%emt 0:00:01]} 16. gxf3 {[%emt 0:00:01]
} Rfe8 {[%emt 0:00:07]} 17. Rab1 {[%emt 0:00:05]} Bxg3 {[%emt 0:00:20]} 18.
hxg3 {[%emt 0:00:02]} b5 {[%emt 0:00:21]} 19. Rfc1 {[%emt 0:00:05]} Nb6 {
[%emt 0:00:03]} 20. Kg2 {[%emt 0:00:23]} Re6 {[%emt 0:00:06]} 21. Ne2 {[%emt 0:
00:14]} Nc4 {[%emt 0:00:14]} 22. Bxc4 {[%emt 0:00:11]} bxc4 {[%emt 0:00:01]}
23. Nf4 {[%emt 0:00:28]} Re7 {[%emt 0:00:01]} 24. Rh1 {[%emt 0:00:09]} Qd6 {
[%emt 0:00:02]} 25. Qf5 {[%emt 0:00:06]} Reb7 {[%emt 0:00:10]} 26. g4 {[%emt 0:
00:05]} Nh7 {[%emt 0:00:06]} 27. Ne2 {[%emt 0:00:18]} Qe6 {[%emt 0:00:23]} 28.
Qc2 {[%emt 0:00:06]} Qg6 {[%emt 0:00:17]} 29. Qa4 {[%emt 0:00:12]} Rb6 {
[%emt 0:00:13]} 30. Nf4 {[%emt 0:00:02]} Qd6 {[%emt 0:00:04]} 31. Qa5 {[%emt 0:
00:03]} Nf8 {[%emt 0:00:08]} 32. Ne2 {[%emt 0:00:03]} Ng6 {[%emt 0:00:03]} 33.
Nc3 {[%emt 0:00:03]} Qf6 {[%emt 0:00:03]} 34. f4 {[%emt 0:00:04]} Nf8 {[%emt 0:
00:10]} 35. Na4 {[%emt 0:00:01]} R6b7 {[%emt 0:00:04]} 36. Nc5 {[%emt 0:00:04]}
Re7 {[%emt 0:00:02]} 37. Qxa6 {[%emt 0:00:01]} Qg6 {[%emt 0:00:02]} 38. Kf3 {
[%emt 0:00:03]} f5 {[%emt 0:00:12]} 39. Rbg1 {[%emt 0:00:02]} Rbe8 {[%emt 0:00:
03]} 40. gxf5 {[%emt 0:00:02]} Qxf5 {[%emt 0:00:01]} 41. Qxc6 {[%emt 0:00:01]}
Nh7 {[%emt 0:00:08]} 42. Qxh6 {[%emt 0:00:02]} Rf7 {[%emt 0:00:03]} 43. Qg6 {
[%emt 0:00:01]} Qxg6 {[%emt 0:00:07]} 44. Rxg6 Ra8 {[%emt 0:00:02]} 45. a4 {
[%emt 0:00:04]} Nf8 {[%emt 0:00:02]} 46. Rd6 {[%emt 0:00:03]} Rf5 {[%emt 0:00:
02]} 47. a5 {[%emt 0:00:01]} Rb8 {[%emt 0:00:02]} 48. a6 {[%emt 0:00:02]} 1-0

[Event "FIDE Women World Blitz 2021"]
[Site "Warsaw"]
[Date "2021.12.29"]
[Round "4.18"]
[White "Injac, Teodora"]
[Black "Efroimski, Marsel"]
[Result "1/2-1/2"]
[ECO "D02"]
[WhiteElo "2387"]
[BlackElo "2419"]
[Annotator "NA"]
[PlyCount "35"]
[EventDate "2021.12.29"]
[EventType "swiss"]
[EventCountry "POL"]
[Tiebreak "Cut1 Buchholz"]
[SourceTitle "playchess.com"]
[Source "ChessBase"]
[SourceQuality "1"]
[TimeControl "180+2"]

1. Nf3 {[%emt 0:00:01]} d5 {[%emt 0:00:01]} 2. g3 {[%emt 0:00:01]} Nc6 {
[%emt 0:00:00]} 3. d4 {[%emt 0:00:01]} Bf5 {[%emt 0:00:01]} 4. Bg2 {[%emt 0:00:
02]} e6 {[%emt 0:00:01]} 5. O-O {[%emt 0:00:07]} Nb4 {[%emt 0:00:02]} 6. Na3 {
[%emt 0:00:06]} c5 {[%emt 0:00:01]} 7. c3 {[%emt 0:00:19]} Nc6 {[%emt 0:00:01]}
8. Bf4 {[%emt 0:00:16]} h6 {[%emt 0:00:03]} 9. Qb3 {[%emt 0:00:17]} Qd7 {
[%emt 0:00:11]} 10. Nb5 {[%emt 0:00:53]} Rc8 {[%emt 0:00:02]} 11. dxc5 {
[%emt 0:00:01]} Bxc5 {[%emt 0:00:05]} 12. Nfd4 {[%emt 0:00:17]} Nge7 {[%emt 0:
00:03]} 13. Nxf5 {[%emt 0:00:18]} Nxf5 {[%emt 0:00:06]} 14. e4 {[%emt 0:00:07]}
dxe4 {[%emt 0:00:09]} 15. Bxe4 {[%emt 0:00:01]} O-O {[%emt 0:00:05]} 16. Rad1 {
[%emt 0:00:00]} Qe7 {[%emt 0:00:02]} 17. Rfe1 {[%emt 0:00:04]} Qf6 {[%emt 0:00:
02]} 18. Qc2 {[%emt 0:00:02]} 1/2-1/2

[Event "FIDE Women World Blitz 2021"]
[Site "Warsaw"]
[Date "2021.12.29"]
[Round "4.19"]
[White "Salimova, Nurgyul"]
[Black "Maltsevskaya, Aleksandra"]
[Result "1-0"]
[ECO "D02"]
[WhiteElo "2353"]
[BlackElo "2411"]
[Annotator "NA"]
[PlyCount "105"]
[EventDate "2021.12.29"]
[EventType "swiss"]
[EventCountry "POL"]
[Tiebreak "Cut1 Buchholz"]
[SourceTitle "playchess.com"]
[Source "ChessBase"]
[SourceQuality "1"]
[TimeControl "180+2"]

1. d4 {[%emt 0:00:02]} Nf6 {[%emt 0:00:01]} 2. Nf3 {[%emt 0:00:01]} g6 {
[%emt 0:00:01]} 3. Nbd2 {[%emt 0:00:01]} d5 {[%emt 0:00:01]} 4. e3 {[%emt 0:00:
02]} Bg7 {[%emt 0:00:01]} 5. b4 {[%emt 0:00:00]} O-O {[%emt 0:00:03]} 6. c4 {
[%emt 0:00:10]} Bf5 {[%emt 0:00:24]} 7. Be2 {[%emt 0:00:15]} Nbd7 {[%emt 0:00:
07]} 8. O-O {[%emt 0:00:12]} a5 {[%emt 0:00:23]} 9. b5 {[%emt 0:00:05]} a4 {
[%emt 0:00:04]} 10. Ba3 {[%emt 0:00:05]} Re8 {[%emt 0:00:11]} 11. Rc1 {[%emt 0:
00:06]} c6 {[%emt 0:00:27]} 12. bxc6 {[%emt 0:00:27]} bxc6 {[%emt 0:00:00]} 13.
cxd5 {[%emt 0:00:05]} cxd5 {[%emt 0:00:02]} 14. Bb5 {[%emt 0:00:03]} Qa5 {
[%emt 0:00:41]} 15. Bc6 {[%emt 0:00:02]} Ra7 {[%emt 0:00:33]} 16. Ne5 {[%emt 0:
00:04]} Nxe5 {[%emt 0:00:07]} 17. dxe5 {[%emt 0:00:06]} Nd7 {[%emt 0:00:01]}
18. Nf3 {[%emt 0:00:12]} Be6 {[%emt 0:00:12]} 19. Nd4 {[%emt 0:00:15]} Rc7 {
[%emt 0:00:13]} 20. Nxe6 {[%emt 0:00:08]} fxe6 {[%emt 0:00:01]} 21. Qg4 {
[%emt 0:00:17]} Rxc6 {[%emt 0:00:06]} 22. Rxc6 {[%emt 0:00:02]} Nf8 {[%emt 0:
00:01]} 23. Qb4 {[%emt 0:00:21]} Qa8 {[%emt 0:00:04]} 24. Rc7 {[%emt 0:00:15]}
Bxe5 {[%emt 0:00:02]} 25. Rxe7 {[%emt 0:00:03]} Rd8 {[%emt 0:00:02]} 26. Qh4 {
[%emt 0:00:15]} Bg7 {[%emt 0:00:02]} 27. Rxg7+ {[%emt 0:00:05]} Kxg7 {[%emt 0:
00:01]} 28. Qe7+ {[%emt 0:00:03]} Kg8 {[%emt 0:00:02]} 29. Bb2 {[%emt 0:00:03]}
Rd7 30. Qf6 {[%emt 0:00:01]} a3 {[%emt 0:00:05]} 31. Bd4 {[%emt 0:00:03]} Qc6 {
[%emt 0:00:02]} 32. h4 {[%emt 0:00:08]} Qd6 {[%emt 0:00:01]} 33. Qh8+ {[%emt 0:
00:05]} Kf7 {[%emt 0:00:01]} 34. Be5 {[%emt 0:00:03]} Qe7 {[%emt 0:00:02]} 35.
Qg7+ {[%emt 0:00:02]} Ke8 {[%emt 0:00:01]} 36. Qh6 {[%emt 0:00:01]} Qc5 {
[%emt 0:00:05]} 37. Rb1 {[%emt 0:00:00]} Rd8 {[%emt 0:00:03]} 38. Qf4 {[%emt 0:
00:03]} Qe7 {[%emt 0:00:01]} 39. Bf6 {[%emt 0:00:01]} Qf7 {[%emt 0:00:02]} 40.
Bxd8 {[%emt 0:00:02]} Qxf4 41. exf4 {[%emt 0:00:00]} Kxd8 {[%emt 0:00:02]} 42.
Rb3 {[%emt 0:00:02]} Nd7 {[%emt 0:00:03]} 43. Rxa3 {[%emt 0:00:01]} Kc7 {
[%emt 0:00:01]} 44. Kf1 {[%emt 0:00:03]} Kc6 {[%emt 0:00:02]} 45. Re3 {[%emt 0:
00:02]} Kd6 {[%emt 0:00:01]} 46. Ke2 {[%emt 0:00:01]} d4 {[%emt 0:00:01]} 47.
Re4 {[%emt 0:00:02]} Kd5 {[%emt 0:00:00]} 48. f3 {[%emt 0:00:03]} h5 {[%emt 0:
00:07]} 49. a4 {[%emt 0:00:02]} Nc5 {[%emt 0:00:03]} 50. Re5+ {[%emt 0:00:01]}
Kc4 {[%emt 0:00:00]} 51. Rxc5+ {[%emt 0:00:02]} Kxc5 {[%emt 0:00:01]} 52. Kd3 {
[%emt 0:00:01]} Kd5 {[%emt 0:00:06]} 53. a5 {[%emt 0:00:01]} 1-0

[Event "FIDE Women World Blitz 2021"]
[Site "Warsaw"]
[Date "2021.12.29"]
[Round "4.21"]
[White "Smietanska, Wiktoria"]
[Black "Pourkashiyan, Atousa"]
[Result "0-1"]
[ECO "D36"]
[WhiteElo "1765"]
[BlackElo "2322"]
[Annotator "NA"]
[PlyCount "82"]
[EventDate "2021.12.29"]
[EventType "swiss"]
[EventCountry "POL"]
[Tiebreak "Cut1 Buchholz"]
[SourceTitle "playchess.com"]
[Source "ChessBase"]
[SourceQuality "1"]
[TimeControl "180+2"]

1. c4 {[%emt 0:00:01]} e6 {[%emt 0:00:01]} 2. Nc3 {[%emt 0:00:01]} d5 {[%emt 0:
00:01]} 3. cxd5 {[%emt 0:00:01]} exd5 {[%emt 0:00:01]} 4. d4 {[%emt 0:00:02]}
Nf6 {[%emt 0:00:01]} 5. Bg5 {[%emt 0:00:01]} Be7 {[%emt 0:00:02]} 6. e3 {
[%emt 0:00:01]} c6 {[%emt 0:00:02]} 7. Bd3 {[%emt 0:00:02]} O-O {[%emt 0:00:09]
} 8. Nge2 {[%emt 0:00:01]} Nbd7 {[%emt 0:00:01]} 9. O-O {[%emt 0:00:03]} Re8 {
[%emt 0:00:01]} 10. Qc2 {[%emt 0:00:04]} Nf8 {[%emt 0:00:01]} 11. Rae1 {
[%emt 0:00:09]} Nh5 {[%emt 0:00:05]} 12. Bxe7 {[%emt 0:00:15]} Qxe7 {[%emt 0:
00:01]} 13. Nc1 {[%emt 0:00:21]} Be6 {[%emt 0:00:11]} 14. f3 {[%emt 0:00:07]}
Rad8 {[%emt 0:00:01]} 15. a3 {[%emt 0:00:08]} a6 {[%emt 0:00:04]} 16. b4 {
[%emt 0:00:03]} Ng6 {[%emt 0:00:15]} 17. Nb3 {[%emt 0:00:11]} Qc7 {[%emt 0:00:
31]} 18. Qd2 {[%emt 0:00:47]} Bc8 {[%emt 0:00:17]} 19. e4 {[%emt 0:00:13]} dxe4
{[%emt 0:00:24]} 20. fxe4 {[%emt 0:00:02]} Be6 {[%emt 0:00:01]} 21. Bc2 {
[%emt 0:00:28]} Bc4 {[%emt 0:00:12]} 22. Rf2 {[%emt 0:00:08]} Nf6 {[%emt 0:00:
11]} 23. Na5 {[%emt 0:00:17]} Be6 {[%emt 0:00:29]} 24. e5 {[%emt 0:00:06]} Ng4
{[%emt 0:00:01]} 25. Rfe2 {[%emt 0:00:03]} N4xe5 {[%emt 0:00:03]} 26. dxe5 {
[%emt 0:00:03]} Rxd2 {[%emt 0:00:01]} 27. Rxd2 {[%emt 0:00:04]} Nxe5 {[%emt 0:
00:08]} 28. Rde2 {[%emt 0:00:08]} Ng6 {[%emt 0:00:03]} 29. Bb3 {[%emt 0:00:04]}
Nf4 {[%emt 0:00:09]} 30. Re4 {[%emt 0:00:04]} Rf8 {[%emt 0:00:11]} 31. Bxe6
Nxe6 {[%emt 0:00:01]} 32. Nb3 {[%emt 0:00:04]} Rd8 {[%emt 0:00:04]} 33. Nc5 {
[%emt 0:00:02]} h6 {[%emt 0:00:12]} 34. Nxe6 {[%emt 0:00:02]} fxe6 {[%emt 0:00:
01]} 35. Rxe6 {[%emt 0:00:02]} Qb6+ {[%emt 0:00:01]} 36. Kh1 {[%emt 0:00:01]}
Qd4 {[%emt 0:00:04]} 37. Na4 {[%emt 0:00:02]} Qd2 {[%emt 0:00:03]} 38. Nc5 {
[%emt 0:00:02]} Rb8 {[%emt 0:00:07]} 39. Re7 {[%emt 0:00:02]} Qc3 {[%emt 0:00:
02]} 40. Nxb7 {[%emt 0:00:02]} Rxb7 {[%emt 0:00:02]} 41. R7e3 {[%emt 0:00:04]}
Qc4 {[%emt 0:00:01]} 0-1

[Event "FIDE Women World Blitz 2021"]
[Site "Warsaw"]
[Date "2021.12.29"]
[Round "4.22"]
[White "Padmini, Rout"]
[Black "Serikbay, Assel"]
[Result "0-1"]
[ECO "A07"]
[WhiteElo "2353"]
[BlackElo "2237"]
[Annotator "NA"]
[PlyCount "70"]
[EventDate "2021.12.29"]
[EventType "swiss"]
[EventCountry "POL"]
[Tiebreak "Cut1 Buchholz"]
[SourceTitle "playchess.com"]
[Source "ChessBase"]
[SourceQuality "1"]
[TimeControl "180+2"]

1. Nf3 {[%emt 0:00:01]} d5 {[%emt 0:00:01]} 2. g3 {[%emt 0:00:02]} Nf6 {
[%emt 0:00:01]} 3. Bg2 {[%emt 0:00:01]} Bg4 {[%emt 0:00:04]} 4. O-O {[%emt 0:
00:02]} c6 {[%emt 0:00:02]} 5. d3 {[%emt 0:00:02]} Nbd7 {[%emt 0:00:04]} 6. h3
{[%emt 0:00:03]} Bh5 {[%emt 0:00:02]} 7. Nbd2 {[%emt 0:00:02]} e5 {[%emt 0:00:
20]} 8. e4 {[%emt 0:00:01]} Bd6 {[%emt 0:00:04]} 9. exd5 {[%emt 0:00:14]} cxd5
{[%emt 0:00:01]} 10. c4 {[%emt 0:00:02]} O-O {[%emt 0:00:09]} 11. Qb3 {[%emt 0:
00:04]} Nc5 {[%emt 0:00:04]} 12. Qa3 {[%emt 0:00:14]} Bg6 {[%emt 0:00:11]} 13.
b4 {[%emt 0:00:26]} Nxd3 {[%emt 0:00:09]} 14. c5 {[%emt 0:00:02]} Be7 {[%emt 0:
00:15]} 15. Nh4 {[%emt 0:00:08]} e4 {[%emt 0:00:15]} 16. Bb2 {[%emt 0:00:16]}
a5 {[%emt 0:00:03]} 17. Nxg6 {[%emt 0:00:13]} hxg6 {[%emt 0:00:02]} 18. bxa5 {
[%emt 0:00:16]} Bxc5 {[%emt 0:00:04]} 19. Qb3 {[%emt 0:00:01]} Qxa5 {[%emt 0:
00:04]} 20. Bc3 {[%emt 0:00:06]} Qa7 {[%emt 0:00:01]} 21. Bxf6 {[%emt 0:00:06]}
gxf6 {[%emt 0:00:01]} 22. Qxd5 {[%emt 0:00:02]} Nxf2 {[%emt 0:00:28]} 23. Nb3 {
[%emt 0:00:02]} Bb6 {[%emt 0:00:19]} 24. Kh2 {[%emt 0:00:01]} Rad8 {[%emt 0:00:
05]} 25. Qb5 {[%emt 0:00:04]} e3 {[%emt 0:00:05]} 26. a4 {[%emt 0:00:05]} Nd3 {
[%emt 0:00:20]} 27. Rxf6 {[%emt 0:00:52]} Bc7 {[%emt 0:00:12]} 28. Qg5 {
[%emt 0:00:07]} Be5 {[%emt 0:00:13]} 29. Rxg6+ {[%emt 0:00:05]} fxg6 {[%emt 0:
00:01]} 30. Qxg6+ {[%emt 0:00:02]} Bg7 {[%emt 0:00:00]} 31. Be4 {[%emt 0:00:03]
} Rf2+ {[%emt 0:00:04]} 32. Kh1 {[%emt 0:00:01]} e2 {[%emt 0:00:04]} 33. Qe6+ {
[%emt 0:00:07]} Kh8 {[%emt 0:00:03]} 34. Qg6 {[%emt 0:00:03]} Rf1+ {[%emt 0:00:
05]} 35. Kh2 {[%emt 0:00:07]} Qg1# {[%emt 0:00:01]} 0-1

[Event "FIDE Women World Blitz 2021"]
[Site "Warsaw"]
[Date "2021.12.29"]
[Round "4.23"]
[White "Katkov, Michelle"]
[Black "Bulmaga, Irina"]
[Result "0-1"]
[ECO "B01"]
[WhiteElo "1651"]
[BlackElo "2405"]
[Annotator "NA"]
[PlyCount "86"]
[EventDate "2021.12.29"]
[EventType "swiss"]
[EventCountry "POL"]
[Tiebreak "Cut1 Buchholz"]
[SourceTitle "playchess.com"]
[Source "ChessBase"]
[SourceQuality "1"]
[TimeControl "180+2"]

1. e4 {[%emt 0:00:01]} d5 {[%emt 0:00:01]} 2. exd5 {[%emt 0:00:02]} Qxd5 {
[%emt 0:00:01]} 3. Nc3 {[%emt 0:00:02]} Qd6 {[%emt 0:00:02]} 4. d4 {[%emt 0:00:
01]} Nf6 {[%emt 0:00:01]} 5. Nf3 {[%emt 0:00:02]} a6 {[%emt 0:00:02]} 6. g3 {
[%emt 0:00:16]} Bg4 {[%emt 0:00:02]} 7. Bg2 {[%emt 0:00:01]} Nc6 {[%emt 0:00:
01]} 8. Bf4 {[%emt 0:00:02]} Qe6+ {[%emt 0:00:06]} 9. Be3 {[%emt 0:00:26]}
O-O-O {[%emt 0:00:09]} 10. O-O {[%emt 0:00:06]} Qf5 {[%emt 0:00:17]} 11. Qe2 {
[%emt 0:00:41]} Nb4 {[%emt 0:00:18]} 12. h3 {[%emt 0:00:11]} Bxh3 {[%emt 0:00:
06]} 13. Bxh3 {[%emt 0:00:02]} Qxh3 {[%emt 0:00:02]} 14. Ng5 {[%emt 0:00:01]}
Qf5 {[%emt 0:00:12]} 15. Nxf7 {[%emt 0:00:04]} Ng4 {[%emt 0:00:13]} 16. Ng5 {
[%emt 0:00:38]} Nxc2 {[%emt 0:00:10]} 17. Bf4 {[%emt 0:00:28]} Nxa1 {[%emt 0:
00:19]} 18. Rxa1 {[%emt 0:00:06]} e5 {[%emt 0:00:11]} 19. dxe5 {[%emt 0:00:06]}
Be7 {[%emt 0:00:07]} 20. Nf3 {[%emt 0:00:03]} g5 {[%emt 0:00:09]} 21. Be3 {
[%emt 0:00:10]} Nxe5 {[%emt 0:00:17]} 22. Nxe5 {[%emt 0:00:05]} Qxe5 {[%emt 0:
00:01]} 23. Rc1 {[%emt 0:00:06]} Kb8 {[%emt 0:00:08]} 24. Qc4 {[%emt 0:00:03]}
Bd6 {[%emt 0:00:17]} 25. Nd5 {[%emt 0:00:03]} Rhf8 {[%emt 0:00:09]} 26. Nb4 {
[%emt 0:00:02]} Qb5 {[%emt 0:00:05]} 27. Qxb5 {[%emt 0:00:02]} axb5 {[%emt 0:
00:02]} 28. Nd3 {[%emt 0:00:03]} h6 {[%emt 0:00:03]} 29. Nc5 {[%emt 0:00:02]}
Bxc5 {[%emt 0:00:02]} 30. Rxc5 {[%emt 0:00:03]} c6 {[%emt 0:00:02]} 31. Re5 {
[%emt 0:00:01]} Rde8 {[%emt 0:00:02]} 32. Rxe8+ {[%emt 0:00:01]} Rxe8 33. Kg2 {
[%emt 0:00:01]} Kc8 {[%emt 0:00:03]} 34. Kf3 {[%emt 0:00:01]} Kd7 {[%emt 0:00:
02]} 35. Kg4 {[%emt 0:00:00]} Re6 {[%emt 0:00:03]} 36. Kh5 {[%emt 0:00:02]} Kd6
{[%emt 0:00:02]} 37. Bd4 {[%emt 0:00:00]} Kd5 {[%emt 0:00:02]} 38. Bg7 {
[%emt 0:00:01]} Re2 {[%emt 0:00:02]} 39. f4 {[%emt 0:00:04]} gxf4 {[%emt 0:00:
02]} 40. gxf4 {[%emt 0:00:01]} Ke4 {[%emt 0:00:01]} 41. Bxh6 {[%emt 0:00:03]}
Rxb2 {[%emt 0:00:03]} 42. a3 {[%emt 0:00:01]} Rh2+ {[%emt 0:00:03]} 43. Kg6 {
[%emt 0:00:01]} Rxh6+ {[%emt 0:00:02]} 0-1

[Event "FIDE Women World Blitz 2021"]
[Site "Warsaw"]
[Date "2021.12.29"]
[Round "4.24"]
[White "Mamedjarova, Zeinab"]
[Black "Zairbek kyzy, Begimai"]
[Result "1-0"]
[ECO "D05"]
[WhiteElo "2249"]
[BlackElo "1701"]
[Annotator "NA"]
[PlyCount "57"]
[EventDate "2021.12.29"]
[EventType "swiss"]
[EventCountry "POL"]
[Tiebreak "Cut1 Buchholz"]
[SourceTitle "playchess.com"]
[Source "ChessBase"]
[SourceQuality "1"]
[TimeControl "180+2"]

1. d4 {[%emt 0:00:01]} d5 {[%emt 0:00:01]} 2. Nf3 {[%emt 0:00:01]} Nf6 {
[%emt 0:00:01]} 3. e3 {[%emt 0:00:01]} e6 {[%emt 0:00:01]} 4. Bd3 {[%emt 0:00:
01]} Be7 {[%emt 0:00:00]} 5. O-O {[%emt 0:00:01]} O-O {[%emt 0:00:01]} 6. Nbd2
{[%emt 0:00:01]} c6 {[%emt 0:00:03]} 7. b3 {[%emt 0:00:03]} Nbd7 {[%emt 0:00:
05]} 8. Bb2 {[%emt 0:00:01]} Re8 {[%emt 0:00:01]} 9. Ne5 {[%emt 0:00:01]} Nxe5
{[%emt 0:00:06]} 10. dxe5 {[%emt 0:00:01]} Nd7 {[%emt 0:00:01]} 11. c4 {
[%emt 0:00:10]} f6 {[%emt 0:00:05]} 12. cxd5 {[%emt 0:00:26]} exd5 {[%emt 0:00:
20]} 13. exf6 {[%emt 0:00:20]} Bxf6 {[%emt 0:00:07]} 14. Qc2 {[%emt 0:00:04]}
h6 {[%emt 0:00:10]} 15. Bg6 {[%emt 0:00:05]} Rf8 {[%emt 0:00:05]} 16. Nf3 {
[%emt 0:00:18]} Bxb2 {[%emt 0:00:17]} 17. Qxb2 Rf6 18. Bc2 {[%emt 0:00:18]} Qf8
{[%emt 0:00:02]} 19. e4 {[%emt 0:00:09]} Nb6 {[%emt 0:00:07]} 20. Rfe1 {
[%emt 0:00:06]} Bg4 {[%emt 0:00:05]} 21. Ne5 {[%emt 0:00:08]} Be6 {[%emt 0:00:
33]} 22. a4 {[%emt 0:00:05]} Rd8 {[%emt 0:00:38]} 23. a5 {[%emt 0:00:08]} Nc8 {
[%emt 0:00:02]} 24. a6 {[%emt 0:00:04]} b6 {[%emt 0:00:35]} 25. Nxc6 {[%emt 0:
00:12]} Rd7 {[%emt 0:00:00]} 26. Nd4 {[%emt 0:00:15]} dxe4 {[%emt 0:00:23]} 27.
Nxe6 {[%emt 0:00:09]} Rxe6 {[%emt 0:00:00]} 28. Bxe4 {[%emt 0:00:01]} Nd6 {
[%emt 0:00:02]} 29. Bd5 {[%emt 0:00:02]} 1-0

[Event "FIDE Women World Blitz 2021"]
[Site "Warsaw"]
[Date "2021.12.29"]
[Round "4.25"]
[White "Lagno, Kateryna"]
[Black "Gaboyan, Susanna"]
[Result "1/2-1/2"]
[ECO "B30"]
[WhiteElo "2550"]
[BlackElo "2253"]
[Annotator "ChessBase"]
[PlyCount "104"]
[EventDate "2021.12.29"]
[EventType "swiss"]
[EventCountry "POL"]
[Tiebreak "Cut1 Buchholz"]
[SourceTitle "playchess.com"]
[Source "ChessBase"]
[SourceQuality "1"]
[TimeControl "180+2"]

1. e4 {[%emt 0:00:01]} c5 {[%emt 0:00:01]} 2. Nf3 {[%emt 0:00:02]} Nc6 {
[%emt 0:00:01]} 3. Nc3 {[%emt 0:00:01]} Nf6 {[%emt 0:00:05]} 4. Bb5 {[%emt 0:
00:04]} Nd4 {[%emt 0:00:08]} 5. e5 {[%emt 0:00:08]} Nxb5 {[%emt 0:00:03]} 6.
Nxb5 {[%emt 0:00:01]} Nd5 {[%emt 0:00:03]} 7. O-O {[%emt 0:00:06]} Nc7 {
[%emt 0:00:31]} 8. Nc3 {[%emt 0:00:07]} d5 {[%emt 0:00:04]} 9. d4 {[%emt 0:00:
04]} Bg4 {[%emt 0:00:07]} 10. dxc5 {[%emt 0:00:07]} e6 {[%emt 0:00:16]} 11. h3
{[%emt 0:00:05]} Bxf3 {[%emt 0:00:10]} 12. Qxf3 {[%emt 0:00:01]} Bxc5 {[%emt 0:
00:03]} 13. Qg4 {[%emt 0:00:05]} Kf8 {[%emt 0:00:20]} 14. Ne2 {[%emt 0:00:10]}
h5 {[%emt 0:00:09]} 15. Qf3 {[%emt 0:00:01]} g6 {[%emt 0:00:31]} 16. Be3 {
[%emt 0:00:36]} Qe7 {[%emt 0:00:15]} 17. c3 {[%emt 0:00:19]} Bxe3 {[%emt 0:00:
10]} 18. fxe3 {[%emt 0:00:03]} Kg7 {[%emt 0:00:01]} 19. Rf2 {[%emt 0:00:05]}
Rhf8 {[%emt 0:00:04]} 20. Raf1 {[%emt 0:00:01]} Qg5 {[%emt 0:00:04]} 21. Qf6+ {
[%emt 0:00:24]} Qxf6 22. Rxf6 {[%emt 0:00:01]} Ne8 {[%emt 0:00:05]} 23. R6f4 {
[%emt 0:00:03]} f5 {[%emt 0:00:02]} 24. exf6+ {[%emt 0:00:04]} Rxf6 {[%emt 0:
00:03]} 25. Nd4 {[%emt 0:00:01]} Kf7 {[%emt 0:00:08]} 26. Rxf6+ {[%emt 0:00:22]
} Nxf6 {[%emt 0:00:01]} 27. Nf3 {[%emt 0:00:02]} Ke7 {[%emt 0:00:07]} 28. Ne5 {
[%emt 0:00:03]} Rg8 {[%emt 0:00:02]} 29. g4 {[%emt 0:00:01]} hxg4 {[%emt 0:00:
07]} 30. hxg4 {[%emt 0:00:01]} g5 {[%emt 0:00:01]} 31. Kg2 {[%emt 0:00:01]} Kd6
{[%emt 0:00:07]} 32. Rxf6 {[%emt 0:00:09]} Kxe5 {[%emt 0:00:01]} 33. Rf7 {
[%emt 0:00:01]} Rb8 {[%emt 0:00:07]} 34. Kf3 {[%emt 0:00:09]} a5 {[%emt 0:00:
02]} 35. Rg7 {[%emt 0:00:14]} Kf6 {[%emt 0:00:01]} 36. Rc7 {[%emt 0:00:01]} b5
{[%emt 0:00:03]} 37. Ra7 {[%emt 0:00:04]} b4 {[%emt 0:00:07]} 38. Rxa5 {
[%emt 0:00:04]} bxc3 {[%emt 0:00:01]} 39. bxc3 {[%emt 0:00:00]} Rb2 {[%emt 0:
00:03]} 40. a4 {[%emt 0:00:01]} Rc2 {[%emt 0:00:03]} 41. Rc5 {[%emt 0:00:01]}
Ra2 {[%emt 0:00:01]} 42. a5 {[%emt 0:00:01]} Ke5 {[%emt 0:00:01]} 43. Rb5 {
[%emt 0:00:03]} Ra3 {[%emt 0:00:03]} 44. c4 {[%emt 0:00:08]} Ra4 {[%emt 0:00:
04]} 45. cxd5 {[%emt 0:00:16]} exd5 {[%emt 0:00:00]} 46. Ke2 {[%emt 0:00:08]}
Rxg4 {[%emt 0:00:03]} 47. Rb8 {[%emt 0:00:02]} Ra4 {[%emt 0:00:02]} 48. Ra8 {
[%emt 0:00:01]} Ke4 {[%emt 0:00:02]} 49. Re8+ {[%emt 0:00:01]} Kf5 {[%emt 0:00:
01]} 50. Ra8 {[%emt 0:00:03]} Ke4 {[%emt 0:00:02]} 51. Re8+ {[%emt 0:00:02]}
Kf5 {[%emt 0:00:01]} 52. Ra8 {[%emt 0:00:03]} Ke5 {[%emt 0:00:06]} 1/2-1/2